fUST/lending_fUST_20240227
["ID","MTS","AMOUNT","RATE_DAILY","PERIOD"]
[315318982,1708980643470,-500.0,0.00019726,2]
[315318983,1708980643479,-667.23,0.00019726,2]
[315318984,1708980643489,-796.76,0.00019726,2]
[315318985,1708980643498,-1411.85,0.00019726,2]
[315318987,1708980643506,-13232.44,0.00019726,2]
[315318988,1708980643516,-1011.35,0.00019726,2]
[315318989,1708980643525,-500.0,0.00019726,2]
[315318990,1708980643534,-1210.92,0.00019726,2]
[315318992,1708980643543,-500.0,0.00019726,2]
[315318993,1708980643552,-500.0,0.00019726,2]
[315318994,1708980643562,-500.0,0.00019726,2]
[315318996,1708980643571,-517.24,0.00019726,2]
[315318997,1708980643580,-5669.45,0.00019726,2]
[315318998,1708980643590,-917.07,0.00019726,2]
[315318999,1708980643599,-1731.5,0.00019726,2]
[315319001,1708980643609,-500.0,0.00019726,2]
[315319002,1708980643619,-1109.85,0.00019726,2]
[315319003,1708980643628,-500.0,0.00019726,2]
[315319005,1708980643637,-524.59,0.00019726,2]
[315319006,1708980643648,-500.0,0.00019726,2]
[315319007,1708980643657,-500.0,0.00019726,2]
[315319009,1708980643667,-2128.1,0.00019726,2]
[315319010,1708980643676,-501.24203989,0.00019726,2]
[315319011,1708980643686,-500.0,0.00019726,2]
[315319012,1708980643695,-2485.17,0.00019726,2]
[315319014,1708980643704,-500.0,0.00019726,2]
[315319015,1708980643713,-1437.8,0.00019726,2]
[315319016,1708980643722,-1651.57,0.00019726,2]
[315319017,1708980643731,-500.0,0.00019726,2]
[315319019,1708980643740,-500.0,0.00019726,2]
[315319020,1708980643749,-1933.08,0.00019726,2]
[315319021,1708980643758,-524.11,0.00019726,2]
[315319023,1708980643767,-1558.59,0.00019726,2]
[315319024,1708980643776,-1351.91,0.00019726,2]
[315319025,1708980643786,-8230.24916882,0.0001989,2]
[315319027,1708980643795,-2463.51589491,0.000199,2]
[315319028,1708980643804,-158.70420018,0.00019939,2]
[315319029,1708980643813,-500.0,0.00019998,2]
[315319030,1708980643822,-500.0,0.00019999,2]
[315319032,1708980643831,-500.0,0.00019999,2]
[315319033,1708980643840,-243.58118859,0.00019999,2]
[315319034,1708980643850,-464.08,0.0002,2]
[315319035,1708980643859,-500.0,0.0002,2]
[315319037,1708980643869,-534.61,0.0002,2]
[315319038,1708980643879,-918.45,0.0002,2]
[315319039,1708980643891,-500.0,0.0002,2]
[315319041,1708980643900,-500.0,0.0002,2]
[315319042,1708980643910,-500.0,0.0002,2]
[315319043,1708980643923,-500.0,0.0002,2]
[315319045,1708980643932,-500.0,0.0002,2]
[315319046,1708980643941,-500.0,0.0002,2]
[315319047,1708980643950,-1942.66,0.0002,2]
[315319049,1708980643962,-806.89,0.0002,2]
[315319050,1708980643971,-1081.1,0.0002,2]
[315319051,1708980643979,-500.0,0.0002,2]
[315319052,1708980643989,-500.0,0.0002,2]
[315319054,1708980643998,-500.0,0.0002,2]
[315319055,1708980644008,-341.76252739,0.0002,2]
[315319056,1708980644017,-500.0,0.0002,2]
[315319058,1708980644027,-500.0,0.0002,2]
[315319059,1708980644037,-1155.4,0.0002,2]
[315319060,1708980644046,-500.0,0.0002,2]
[315319061,1708980644055,-843.85,0.0002,2]
[315319063,1708980644064,-500.0,0.0002,2]
[315319064,1708980644074,-777.33,0.0002,2]
[315319065,1708980644083,-7045.76,0.0002,2]
[315319067,1708980644092,-500.0,0.0002,2]
[315319068,1708980644101,-12848.66,0.0002,2]
[315319069,1708980644110,-2613.42,0.0002,2]
[315319070,1708980644119,-619.62,0.0002,2]
[315319072,1708980644129,-500.0,0.0002,2]
[315319073,1708980644139,-500.0,0.0002,2]
[315319074,1708980644149,-667.23,0.0002,2]
[315319076,1708980644159,-796.76,0.0002,2]
[315319077,1708980644170,-1411.85,0.0002,2]
[315319078,1708980644180,-13232.44,0.0002,2]
[315319080,1708980644189,-1011.35,0.0002,2]
[315319081,1708980644199,-500.0,0.0002,2]
[315319082,1708980644208,-1210.92,0.0002,2]
[315319083,1708980644217,-500.0,0.0002,2]
[315319085,1708980644226,-500.0,0.0002,2]
[315319086,1708980644235,-517.24,0.0002,2]
[315319087,1708980644245,-5669.45,0.0002,2]
[315319089,1708980644255,-917.07,0.0002,2]
[315319090,1708980644264,-1731.5,0.0002,2]
[315319091,1708980644273,-500.0,0.0002,2]
[315319092,1708980644283,-1109.85,0.0002,2]
[315319094,1708980644292,-485.65562093,0.0002,2]
[315319095,1708980644301,-500.0,0.0002,2]
[315319096,1708980644310,-2128.1,0.0002,2]
[315319098,1708980644319,-500.0,0.0002,2]
[315319099,1708980644328,-500.0,0.0002,2]
[315319100,1708980644338,-2485.17,0.0002,2]
[315319101,1708980644347,-1437.8,0.0002,2]
[315319103,1708980644356,-1651.57,0.0002,2]
[315319104,1708980644365,-500.0,0.0002,2]
[315319105,1708980644374,-1933.08,0.0002,2]
[315319107,1708980644384,-524.11,0.0002,2]
[315319108,1708980644396,-1558.59,0.0002,2]
[315319109,1708980644406,-1351.91,0.0002,2]
[315319111,1708980644415,-2463.51589487,0.00020011,2]
[315319112,1708980644425,-166.666666,0.00020076,2]
[315319113,1708980644435,-2463.51589487,0.00020122,2]
[315319114,1708980644444,-426.8916076,0.00020192,2]
[315319116,1708980644453,-153.0,0.00020192,2]
[315319117,1708980644463,-200.5826354,0.00020192,2]
[315319118,1708980644472,-2463.51589487,0.00020233,2]
[315319120,1708980644482,-500.0,0.00020272,2]
[315319121,1708980644492,-500.0,0.00020273,2]
[315319122,1708980644503,-534.61,0.00020273,2]
[315319123,1708980644512,-918.45,0.00020273,2]
[315319125,1708980644521,-500.0,0.00020273,2]
[315319126,1708980644531,-500.0,0.00020273,2]
[315319127,1708980644539,-1942.66,0.00020273,2]
[315319129,1708980644549,-806.89,0.00020273,2]
[315319130,1708980644561,-1081.1,0.00020273,2]
[315319131,1708980644570,-500.0,0.00020273,2]
[315319133,1708980644580,-500.0,0.00020273,2]
[315319134,1708980644589,-500.0,0.00020273,2]
[315319135,1708980644598,-1155.4,0.00020273,2]
[315319137,1708980644607,-843.85,0.00020273,2]
[315319138,1708980644617,-151.71358935,0.00020273,2]
[315319139,1708980644627,-777.33,0.00020273,2]
[315319140,1708980644636,-7045.76,0.00020273,2]
[315319142,1708980644646,-500.0,0.00020273,2]
[315319143,1708980644655,-12848.66,0.00020273,2]
[315319144,1708980644664,-2613.42,0.00020273,2]
[315319146,1708980644674,-619.62,0.00020273,2]
[315319147,1708980644683,-500.0,0.00020273,2]
[315319148,1708980644692,-500.0,0.00020273,2]
[315319150,1708980644701,-667.23,0.00020273,2]
[315319151,1708980644710,-796.76,0.00020273,2]
[315319152,1708980644719,-1411.85,0.00020273,2]
[315319153,1708980644728,-13232.44,0.00020273,2]
[315319155,1708980644738,-1011.35,0.00020273,2]
[315319156,1708980644748,-500.0,0.00020273,2]
[315319157,1708980644760,-1210.92,0.00020273,2]
[315319159,1708980644769,-500.0,0.00020273,2]
[315319160,1708980644778,-500.0,0.00020273,2]
[315319161,1708980644787,-517.24,0.00020273,2]
[315319163,1708980644796,-5669.45,0.00020273,2]
[315319164,1708980644807,-917.07,0.00020273,2]
[315319165,1708980644816,-1731.5,0.00020273,2]
[315319167,1708980644826,-500.0,0.00020273,2]
[315319168,1708980644835,-1109.85,0.00020273,2]
[315319169,1708980644844,-500.0,0.00020273,2]
[315319171,1708980644854,-2128.1,0.00020273,2]
[315319172,1708980644863,-500.0,0.00020273,2]
[315319173,1708980644874,-504.22081806,0.00020273,2]
[315319174,1708980644883,-2485.17,0.00020273,2]
[315319176,1708980644893,-1437.8,0.00020273,2]
[315319177,1708980644902,-1651.57,0.00020273,2]
[315319178,1708980644911,-1933.08,0.00020273,2]
[315319180,1708980644920,-524.11,0.00020273,2]
[315319181,1708980644929,-1558.59,0.00020273,2]
[315319182,1708980644938,-1351.91,0.00020273,2]
[315319183,1708980644948,-2463.51589487,0.00020344,2]
[315319185,1708980644957,-158.70420018,0.0002037,2]
[315319186,1708980644966,-500.0,0.00020446,2]
[315319187,1708980644975,-2463.51589487,0.00020456,2]
[315319189,1708980644985,-166.666666,0.00020524,2]
[315319190,1708980644994,-528.84,0.00020538,3]
[315319191,1708980645003,-1047.26,0.00020538,3]
[315319192,1708980645012,-523.64,0.00020538,3]
[315319194,1708980645021,-151.66985477,0.00020539,2]
[315319195,1708980645031,-500.0,0.00020546,2]
[315319196,1708980645040,-500.0,0.00020547,2]
[315319198,1708980645050,-534.61,0.00020547,2]
[315319199,1708980645059,-918.45,0.00020547,2]
[315319200,1708980645069,-500.0,0.00020547,2]
[315319202,1708980645078,-500.0,0.00020547,2]
[315319203,1708980645088,-1942.66,0.00020547,2]
[315319204,1708980645097,-806.89,0.00020547,2]
[315319206,1708980645107,-1081.1,0.00020547,2]
[315319207,1708980645118,-500.0,0.00020547,2]
[315319208,1708980645127,-500.0,0.00020547,2]
[315319209,1708980645136,-500.0,0.00020547,2]
[315319211,1708980645146,-1155.4,0.00020547,2]
[315319212,1708980645156,-843.85,0.00020547,2]
[315319213,1708980645165,-777.33,0.00020547,2]
[315319215,1708980645175,-7045.76,0.00020547,2]
[315319216,1708980645185,-500.0,0.00020547,2]
[315319217,1708980645194,-12848.66,0.00020547,2]
[315319219,1708980645203,-2613.42,0.00020547,2]
[315319220,1708980645213,-619.62,0.00020547,2]
[315319221,1708980645223,-500.0,0.00020547,2]
[315319223,1708980645232,-500.0,0.00020547,2]
[315319224,1708980645241,-667.23,0.00020547,2]
[315319225,1708980645250,-796.76,0.00020547,2]
[315319226,1708980645261,-1411.85,0.00020547,2]
[315319228,1708980645270,-13232.44,0.00020547,2]
[315319229,1708980645279,-1011.35,0.00020547,2]
[315319230,1708980645289,-500.0,0.00020547,2]
[315319231,1708980645298,-1210.92,0.00020547,2]
[315319233,1708980645307,-500.0,0.00020547,2]
[315319235,1708980645316,-500.0,0.00020547,2]
[315319236,1708980645326,-517.24,0.00020547,2]
[315319239,1708980645336,-5669.45,0.00020547,2]
[315319240,1708980645345,-917.07,0.00020547,2]
[315319241,1708980645355,-1731.5,0.00020547,2]
[315319242,1708980645365,-500.0,0.00020547,2]
[315319244,1708980645375,-1109.85,0.00020547,2]
[315319246,1708980645384,-500.0,0.00020547,2]
[315319248,1708980645396,-2128.1,0.00020547,2]
[315319250,1708980645406,-500.0,0.00020547,2]
[315319252,1708980645415,-2485.17,0.00020547,2]
[315319253,1708980645425,-1437.8,0.00020547,2]
[315319254,1708980645436,-1651.57,0.00020547,2]
[315319255,1708980645445,-1933.08,0.00020547,2]
[315319257,1708980645454,-524.11,0.00020547,2]
[315319258,1708980645464,-1558.59,0.00020547,2]
[315319259,1708980645474,-1351.91,0.00020547,2]
[315319261,1708980645483,-500.0,0.0002055,2]
[315319262,1708980645492,-2463.51589487,0.00020567,2]
[315319266,1708980645585,-350.86884758,0.00020569,2]
[315319267,1708980645596,-251.5625,0.00020569,2]
[315319268,1708980645605,-213.6927112,0.00020569,2]
[315319269,1708980645615,-579.37919804,0.00020569,2]
[315319271,1708980645624,-771.91074158,0.00020572,2]
[315319272,1708980645633,-8706.1664675,0.00020574,2]
[315319273,1708980645643,-32225.93566174,0.00020574,2]
[315319275,1708980645653,-185.68557453,0.00020574,2]
[315319276,1708980645662,-500.0,0.00020597,2]
[315319277,1708980645672,-2463.51589487,0.00020678,2]
[315319278,1708980645681,-2463.51589487,0.00020789,2]
[315319280,1708980645691,-158.70420018,0.000208,2]
[315319281,1708980645701,-61937.27068201,0.00020803,2]
[315319282,1708980645710,-76986.77185848,0.00020803,2]
[315319284,1708980645720,-235.91877829,0.0002082,2]
[315319285,1708980645730,-500.0,0.0002082,2]
[315319286,1708980645739,-500.0,0.0002082,2]
[315319288,1708980645749,-500.0,0.0002082,2]
[315319289,1708980645758,-500.0,0.0002082,2]
[315319290,1708980645767,-500.0,0.0002082,2]
[315319291,1708980645777,-500.0,0.0002082,2]
[315319293,1708980645786,-500.0,0.0002082,2]
[315319294,1708980645795,-500.0,0.0002082,2]
[315319295,1708980645805,-500.0,0.0002082,2]
[315319297,1708980645814,-500.0,0.0002082,2]
[315319298,1708980645823,-399.333294,0.0002082,2]
[315319299,1708980645833,-500.0,0.0002082,2]
[315319300,1708980645843,-256.44210122,0.0002082,2]
[315319302,1708980645852,-500.0,0.00020821,2]
[315319303,1708980645862,-534.61,0.00020821,2]
[315319304,1708980645871,-918.45,0.00020821,2]
[315319306,1708980645881,-500.0,0.00020821,2]
[315319307,1708980645891,-500.0,0.00020821,2]
[315319308,1708980645901,-1942.66,0.00020821,2]
[315319309,1708980645910,-806.89,0.00020821,2]
[315319311,1708980645919,-1081.1,0.00020821,2]
[315319312,1708980645929,-500.0,0.00020821,2]
[315319313,1708980645939,-500.0,0.00020821,2]
[315319315,1708980645950,-500.0,0.00020821,2]
[315319316,1708980645961,-1155.4,0.00020821,2]
[315319317,1708980645970,-843.85,0.00020821,2]
[315319318,1708980645979,-777.33,0.00020821,2]
[315319320,1708980645989,-7045.76,0.00020821,2]
[315319321,1708980645999,-621.17433503,0.00020821,2]
[315319322,1708980646009,-12848.66,0.00020821,2]
[315319323,1708980646019,-2613.42,0.00020821,2]
[315319325,1708980646028,-619.62,0.00020821,2]
[315319326,1708980646038,-500.0,0.00020821,2]
[315319327,1708980646048,-500.0,0.00020821,2]
[315319329,1708980646057,-667.23,0.00020821,2]
[315319330,1708980646066,-796.76,0.00020821,2]
[315319331,1708980646076,-1411.85,0.00020821,2]
[315319332,1708980646085,-13232.44,0.00020821,2]
[315319334,1708980646094,-1011.35,0.00020821,2]
[315319335,1708980646104,-609.4828341,0.00020821,2]
[315319336,1708980646113,-1210.92,0.00020821,2]
[315319337,1708980646123,-500.0,0.00020821,2]
[315319339,1708980646132,-500.0,0.00020821,2]
[315319340,1708980646142,-517.24,0.00020821,2]
[315319341,1708980646151,-5669.45,0.00020821,2]
[315319343,1708980646160,-917.07,0.00020821,2]
[315319344,1708980646170,-1731.5,0.00020821,2]
[315319345,1708980646180,-150.23101348,0.00020821,2]
[315319346,1708980646190,-1109.85,0.00020821,2]
[315319348,1708980646199,-500.0,0.00020821,2]
[315319349,1708980646208,-2128.1,0.00020821,2]
[315319350,1708980646218,-500.0,0.00020821,2]
[315319352,1708980646228,-2485.17,0.00020821,2]
[315319353,1708980646238,-1437.8,0.00020821,2]
[315319354,1708980646247,-1651.57,0.00020821,2]
[315319355,1708980646257,-1933.08,0.00020821,2]
[315319357,1708980646267,-524.11,0.00020821,2]
[315319358,1708980646277,-1558.59,0.00020821,2]
[315319359,1708980646287,-1351.91,0.00020821,2]
[315319360,1708980646296,-50000.0,0.00020871,2]
[315319362,1708980646306,-50000.0,0.00020871,2]
[315319363,1708980646315,-2463.51589487,0.000209,2]
[315319364,1708980646326,-50000.0,0.00020939,2]
[315319365,1708980646336,-50000.0,0.00020939,2]
[315319367,1708980646345,-73492.17520733,0.00020939,2]
[315319368,1708980646355,-19043.8070203,0.00020939,2]
[315319369,1708980646364,-166.666666,0.00020973,2]
[315319371,1708980646374,-589.16564622,0.00020998,2]
[315319372,1708980646383,-1245.9983715,0.00020998,2]
[315319373,1708980646397,-951.21450269,0.00020998,2]
[315319375,1708980646406,-292.07022726,0.00020998,2]
[315319376,1708980646415,-538.0,0.00020998,2]
[315319377,1708980646424,-290.05288383,0.00020998,2]
[315319378,1708980646434,-179.43256387,0.00020998,2]
[315319380,1708980646443,-279.31187596,0.00020998,2]
[315319381,1708980646452,-428.88796945,0.00020998,2]
[315319382,1708980646462,-160.0,0.00020999,2]
[315319384,1708980646471,-160.0,0.00020999,2]
[315319385,1708980646482,-195.0,0.00020999,2]
[315319386,1708980646491,-195.0,0.00020999,2]
[315319387,1708980646500,-285.11614122,0.00020999,2]
[315319389,1708980646509,-3104.68273435,0.00021,3]
[315319390,1708980646518,-103073.3362288,0.00021,2]
[315327411,1708981161519,-155.17379465,0.00016498,2]
[315327412,1708981161556,-159.80558045,0.00016499,2]
[315327413,1708981161594,-261.77212706,0.00017769,2]
[315327415,1708981161626,-19702.67493575,0.0001777,2]
[315327416,1708981161805,-24900.0,0.00017771,2]
[315327417,1708981161838,-168.81791008,0.00018075,2]
[315327418,1708981161869,-317.917894,0.00018177,2]
[315327419,1708981161898,-883.13049723,0.00018899,2]
[315327421,1708981161928,-155.17379465,0.000189,2]
[315327422,1708981161958,-2614.02085249,0.000189,2]
[315327423,1708981161987,-1725.38029265,0.00019,2]
[315327424,1708981162020,-5500.00264993,0.00019,2]
[315327435,1708981164997,1742.68056833,0.000189,2]
[315327631,1708981214206,-155.17379465,0.0001701,2]
[315327683,1708981228037,155.17379465,0.0001701,2]
[315327760,1708981246116,256.89828552,0.0001701,2]
[315328802,1708981832730,-159.80558045,0.00018114,2]
[315328803,1708981832744,-155.15360207,0.00018115,2]
[315328804,1708981832753,-285.0,0.00018118,2]
[315328805,1708981832763,-19702.67493575,0.00018119,2]
[315328806,1708981832772,-24900.0,0.0001812,2]
[315328807,1708981832784,-158.958947,0.0001829,2]
[315328808,1708981832794,-1161.78704555,0.000189,2]
[315328809,1708981832803,-349.95,0.00019168,3]
[315328810,1708981832812,-174.98,0.00019168,3]
[315328811,1708981832821,-524.95,0.00019168,3]
[315328812,1708981832831,-1213.23739052,0.00019177,2]
[315328813,1708981832841,-646.47874491,0.00019178,2]
[315328814,1708981832850,-500.0,0.00019178,2]
[315328815,1708981832861,-500.0,0.00019178,2]
[315328816,1708981832870,-500.0,0.00019178,2]
[315328817,1708981832879,-501.47582872,0.00019178,2]
[315328818,1708981832889,-500.0,0.00019178,2]
[315328819,1708981832899,-500.0,0.00019178,2]
[315328820,1708981832908,-500.0,0.00019178,2]
[315328821,1708981832917,-500.0,0.00019178,2]
[315328822,1708981832926,-500.0,0.00019178,2]
[315328823,1708981832936,-500.0,0.00019178,2]
[315328824,1708981832945,-510.36105547,0.00019178,2]
[315328825,1708981832954,-500.0,0.00019178,2]
[315328826,1708981832963,-500.0,0.00019178,2]
[315328827,1708981832973,-500.0,0.00019178,2]
[315328828,1708981832982,-449.10144349,0.00019178,2]
[315328829,1708981832991,-500.0,0.00019178,2]
[315328830,1708981833000,-371.60145498,0.00019178,2]
[315328831,1708981833011,-500.0,0.00019178,2]
[315328832,1708981833021,-500.0,0.00019178,2]
[315328833,1708981833031,-500.0,0.00019178,2]
[315328834,1708981833041,-503.92602803,0.00019178,2]
[315328835,1708981833051,-500.0,0.00019178,2]
[315328836,1708981833062,-500.0,0.00019178,2]
[315328837,1708981833072,-254.21358286,0.00019178,2]
[315328838,1708981833082,-500.0,0.00019178,2]
[315328839,1708981833092,-500.0,0.00019178,2]
[315328840,1708981833101,-500.0,0.00019178,2]
[315328841,1708981833110,-500.0,0.00019178,2]
[315328842,1708981833119,-500.0,0.00019178,2]
[315328843,1708981833129,-500.0,0.00019178,2]
[315328844,1708981833138,-500.0,0.00019178,2]
[315328845,1708981833149,-500.0,0.00019178,2]
[315328846,1708981833158,-500.0,0.00019178,2]
[315328847,1708981833168,-500.0,0.00019178,2]
[315328848,1708981833178,-500.0,0.00019178,2]
[315328849,1708981833187,-500.0,0.00019178,2]
[315328850,1708981833196,-500.0,0.00019178,2]
[315328851,1708981833205,-500.0,0.00019178,2]
[315328852,1708981833215,-500.0,0.00019178,2]
[315328853,1708981833224,-432.44409481,0.00019178,2]
[315328854,1708981833234,-501.27795922,0.00019178,2]
[315328855,1708981833243,-285.47079158,0.00019178,2]
[315328856,1708981833253,-500.0,0.00019178,2]
[315328857,1708981833262,-500.0,0.00019178,2]
[315328858,1708981833273,-2193.45,0.00019178,2]
[315328859,1708981833282,-885.32,0.00019178,2]
[315328860,1708981833291,-501.26705979,0.00019178,2]
[315328861,1708981833301,-612.89728722,0.00019178,2]
[315328862,1708981833310,-626.77094743,0.00019178,2]
[315328863,1708981833320,-500.0,0.00019178,2]
[315328864,1708981833330,-500.0,0.00019178,2]
[315328865,1708981833341,-829.89,0.00019178,2]
[315328866,1708981833352,-1165.92,0.00019178,2]
[315328867,1708981833362,-500.99896109,0.00019178,2]
[315328868,1708981833372,-500.0,0.00019178,2]
[315328869,1708981833382,-417.97011128,0.00019178,2]
[315328870,1708981833392,-500.0,0.00019178,2]
[315328871,1708981833401,-500.0,0.00019178,2]
[315328872,1708981833411,-500.0,0.00019178,2]
[315328873,1708981833420,-500.0,0.00019178,2]
[315328874,1708981833429,-500.0,0.00019178,2]
[315328875,1708981833439,-500.0,0.00019178,2]
[315328876,1708981833448,-500.0,0.00019178,2]
[315328877,1708981833458,-1027.18,0.00019178,2]
[315328878,1708981833467,-500.0,0.00019178,2]
[315328879,1708981833477,-501.57235247,0.00019178,2]
[315328880,1708981833486,-500.0,0.00019178,2]
[315328881,1708981833496,-500.0,0.00019178,2]
[315328882,1708981833505,-500.0,0.00019178,2]
[315328883,1708981833515,-500.0,0.00019178,2]
[315328884,1708981833525,-500.0,0.00019178,2]
[315328885,1708981833535,-500.0,0.00019178,2]
[315328886,1708981833545,-500.0,0.00019178,2]
[315328887,1708981833556,-500.0,0.00019178,2]
[315328888,1708981833566,-500.0,0.00019178,2]
[315328889,1708981833577,-500.0,0.00019178,2]
[315328890,1708981833587,-500.0,0.00019178,2]
[315328891,1708981833597,-500.0,0.00019178,2]
[315328892,1708981833607,-500.0,0.00019178,2]
[315328893,1708981833616,-500.0,0.00019178,2]
[315328894,1708981833626,-500.0,0.00019178,2]
[315328895,1708981833636,-500.0,0.00019178,2]
[315328896,1708981833646,-1235.16,0.00019178,2]
[315328897,1708981833656,-500.0,0.00019178,2]
[315328898,1708981833665,-502.38633586,0.00019178,2]
[315328899,1708981833675,-500.0,0.00019178,2]
[315328900,1708981833684,-631.67993521,0.00019178,2]
[315328901,1708981833694,-500.0,0.00019178,2]
[315328902,1708981833703,-527.74951966,0.00019178,2]
[315328903,1708981833711,-500.0,0.00019178,2]
[315328904,1708981833720,-874.88,0.00019178,2]
[315328905,1708981833730,-500.0,0.00019178,2]
[315328906,1708981833740,-500.0,0.00019178,2]
[315328907,1708981833749,-500.0,0.00019178,2]
[315328908,1708981833758,-500.0,0.00019178,2]
[315328909,1708981833767,-500.0,0.00019178,2]
[315328910,1708981833780,-500.0,0.00019178,2]
[315328911,1708981833789,-500.0,0.00019178,2]
[315328912,1708981833798,-500.0,0.00019178,2]
[315328913,1708981833807,-500.0,0.00019178,2]
[315328914,1708981833817,-500.0,0.00019178,2]
[315328915,1708981833826,-647.66354051,0.00019178,2]
[315328916,1708981833836,-500.0,0.00019178,2]
[315328917,1708981833845,-399.4533262,0.00019178,2]
[315328918,1708981833856,-500.0,0.00019178,2]
[315328919,1708981833866,-543.94,0.00019178,2]
[315328920,1708981833875,-500.0,0.00019178,2]
[315328921,1708981833884,-1518.61,0.00019178,2]
[315328922,1708981833893,-500.0,0.00019178,2]
[315328923,1708981833902,-500.0,0.00019178,2]
[315328924,1708981833911,-1580.72,0.00019178,2]
[315328925,1708981833921,-470.0,0.00019178,2]
[315328926,1708981833930,-500.0,0.00019178,2]
[315328927,1708981833939,-656.3,0.00019178,2]
[315328928,1708981833950,-500.0,0.00019178,2]
[315328929,1708981833960,-13827.36,0.00019178,2]
[315328930,1708981833970,-500.0,0.00019178,2]
[315328931,1708981833979,-500.0,0.00019178,2]
[315328932,1708981833988,-500.0,0.00019178,2]
[315328933,1708981833997,-521.26886401,0.00019178,2]
[315328934,1708981834008,-500.0,0.00019178,2]
[315328935,1708981834017,-500.0,0.00019178,2]
[315328936,1708981834027,-1266.2,0.00019178,2]
[315328937,1708981834036,-500.0,0.00019178,2]
[315328938,1708981834045,-500.0,0.00019178,2]
[315328939,1708981834055,-772.73,0.00019178,2]
[315328940,1708981834065,-500.0,0.00019178,2]
[315328941,1708981834075,-6357.38,0.00019178,2]
[315328942,1708981834085,-500.0,0.00019178,2]
[315328943,1708981834095,-599.85,0.00019178,2]
[315328944,1708981834105,-500.0,0.00019178,2]
[315328945,1708981834114,-1949.59,0.00019178,2]
[315328946,1708981834123,-1009.22,0.00019178,2]
[315328947,1708981834133,-500.0,0.00019178,2]
[315328948,1708981834144,-500.0,0.00019178,2]
[315328949,1708981834153,-500.0,0.00019178,2]
[315328950,1708981834162,-500.0,0.00019178,2]
[315328951,1708981834171,-500.0,0.00019178,2]
[315328952,1708981834180,-2920.52,0.00019178,2]
[315328953,1708981834190,-500.0,0.00019178,2]
[315328954,1708981834198,-500.0,0.00019178,2]
[315328955,1708981834208,-635.67,0.00019178,2]
[315328956,1708981834216,-2514.92,0.00019178,2]
[315328957,1708981834225,-15646.63,0.00019178,2]
[315328958,1708981834234,-2023.73,0.00019178,2]
[315328959,1708981834243,-183.1900104,0.00019178,2]
[315328960,1708981834252,-1549.82,0.00019178,2]
[315328961,1708981834261,-500.0,0.00019178,2]
[315328962,1708981834270,-500.0,0.00019178,2]
[315328963,1708981834279,-502.11470017,0.00019178,2]
[315328964,1708981834288,-268.97832651,0.00019178,2]
[315328965,1708981834298,-702.45,0.00019178,2]
[315328966,1708981834307,-500.0,0.00019178,2]
[315328967,1708981834317,-500.0,0.00019178,2]
[315328968,1708981834326,-1000.0,0.00019178,2]
[315328969,1708981834335,-500.0,0.00019178,2]
[315328970,1708981834344,-500.0,0.00019178,2]
[315328971,1708981834353,-500.0,0.00019178,2]
[315328972,1708981834362,-500.0,0.00019178,2]
[315328973,1708981834371,-1142.53,0.00019178,2]